bitfinex/quotes_SOLUSD_20241020
["timestamp","ask_amount","ask_price","bid_price","bid_amount"]
[1729416696768,0.1,158.9,158.85,30.73316099]
[1729416696968,0.1,158.9,158.85,36.31411005]
[1729416697783,0.1,158.91,158.85,36.31411005]
[1729416698560,0.1,158.9,158.85,36.31411005]
[1729416700868,0.1,158.91,158.85,36.31411005]
[1729416701059,0.1,158.92,158.86,5.58094906]
[1729416701258,0.1,158.92,158.87,23.776884]
[1729416703157,0.1,158.91,158.87,23.776884]
[1729416703356,0.1,158.92,158.87,5.58094906]
[1729416703872,0.1,158.92,158.88,23.776884]
[1729416704171,0.1,158.91,158.88,23.776884]
[1729416706957,0.1,158.92,158.88,23.776884]
[1729416707169,0.1,158.93,158.89,20.0]
[1729416707373,0.1,158.93,158.89,32.53722605]
[1729416709975,0.1,158.94,158.9,29.35783306]
[1729416710168,0.1,158.94,158.9,36.31411005]
[1729416711075,0.1,158.95,158.9,36.31411005]
[1729416711276,0.1,158.94,158.9,36.31411005]
[1729416712058,0.1,158.95,158.9,36.31411005]
[1729416712856,0.1,158.95,158.9,30.73316099]
[1729416713063,0.1,158.94,158.9,36.31411005]
[1729416713979,22.585,158.98,158.92,23.776884]
[1729416713980,0.1,158.97,158.92,23.776884]
[1729416714780,0.1,158.97,158.92,29.35783306]
[1729416715974,0.1,158.96,158.92,23.776884]
[1729416716177,0.1,158.97,158.92,23.776884]
[1729416717491,22.685,158.98,158.92,23.776884]
[1729416717660,0.1,158.98,158.94,23.776884]
[1729416718061,0.1,158.99,158.94,23.776884]
[1729416718260,0.1,158.98,158.95,23.776884]
[1729416720691,0.1,158.97,158.94,5.58094906]
[1729416726783,0.1,158.97,158.92,5.49990719]
[1729416726784,0.1,158.95,158.92,23.776884]
[1729416728187,0.1,158.94,158.92,23.776884]
[1729416728373,0.1,158.94,158.91,6.95627699]
[1729416728686,0.1,158.94,158.91,23.776884]
[1729416738211,0.1,158.95,158.91,23.776884]
[1729416738997,0.1,158.95,158.9,30.33502353]
[1729416739172,0.1,158.95,158.9,37.29130052]
[1729416740088,0.1,158.94,158.9,37.29130052]
[1729416741295,0.1,158.95,158.9,37.29130052]
[1729416741892,0.1,158.94,158.9,37.29130052]
[1729416742109,0.1,158.95,158.9,37.29130052]
[1729416742782,0.1,158.94,158.9,37.29130052]
[1729416749493,0.1,158.93,158.9,37.29130052]
[1729416750596,0.1,158.92,158.9,13.51441652]
[1729416751300,0.1,158.91,158.9,6.55813953]
[1729416753006,0.1,158.92,158.9,6.55813953]
[1729416755304,0.1,158.91,158.9,6.55813953]
[1729416760084,0.1,158.92,158.9,6.55813953]
[1729416760706,0.1,158.91,158.9,6.55813953]
[1729416761201,0.1,158.92,158.9,6.55813953]
[1729416761407,0.1,158.91,158.9,6.55813953]
[1729416762600,0.1,158.91,158.87,25.58094906]
[1729416762793,0.1,158.91,158.88,23.776884]
[1729416764600,0.1,158.9,158.87,17.65568679]
[1729416766403,0.1,158.91,158.87,17.65568679]
[1729416766999,0.1,158.91,158.87,19.03101472]
[1729416768987,0.1,158.9,158.87,19.03101472]
[1729416769187,0.1,158.91,158.87,19.03101472]
[1729416770802,0.1,158.9,158.87,19.03101472]
[1729416771019,0.1,158.91,158.87,19.03101472]
[1729416771190,0.1,158.9,158.87,19.03101472]
[1729416771598,0.1,158.91,158.87,19.03101472]
[1729416771797,0.1,158.9,158.87,19.03101472]
[1729416772313,0.1,158.91,158.87,19.03101472]
[1729416773512,0.1,158.9,158.87,19.03101472]
[1729416781189,0.1,158.91,158.87,19.03101472]
[1729416781400,0.1,158.91,158.87,12.47668961]
[1729416782618,0.1,158.9,158.87,12.47668961]
[1729416785721,0.1,158.93,158.88,23.776884]
[1729416786022,0.1,158.93,158.88,36.31411005]
[1729416786199,0.1,158.93,158.89,20.0]
[1729416786398,0.1,158.93,158.9,23.776884]
[1729416798907,0.1,158.93,158.9,29.35783306]
[1729416800127,0.1,158.93,158.9,23.776884]
[1729416803421,0.1,158.93,158.9,29.35783306]
[1729416816530,0.1,158.93,158.9,23.776884]
[1729416816829,0.1,158.93,158.9,29.35783306]
[1729416822138,0.1,158.93,158.9,23.776884]
[1729416822837,0.1,158.93,158.9,29.35783306]
[1729416825438,0.1,158.93,158.9,36.31411005]
[1729416825851,0.1,158.93,158.91,5.58094906]
[1729416827421,0.1,158.95,158.92,30.73316099]
[1729416827624,0.1,158.95,158.92,36.31411005]
[1729416828830,0.1,158.95,158.92,30.73316099]
[1729416829031,0.1,158.95,158.92,36.31411005]
[1729416834220,0.1,158.95,158.92,30.73316099]
[1729416835943,0.1,158.94,158.92,6.95627699]
[1729416840553,0.1,158.93,158.92,6.95627699]
[1729416843137,0.1,158.94,158.92,6.95627699]
[1729416843348,0.1,158.95,158.92,6.95627699]
[1729416843553,0.1,158.95,158.92,12.53722605]
[1729416843756,0.1,158.95,158.93,5.58094906]
[1729416844643,0.1,158.95,158.93,12.53722605]
[1729416848738,0.1,158.98,158.93,12.53722605]
[1729416848946,0.1,158.98,158.94,30.73316099]
[1729416849164,0.1,158.98,158.95,5.58094906]
[1729416849377,0.1,158.98,158.95,12.53722605]
[1729416851261,0.1,158.99,158.95,12.53722605]
[1729416851569,0.1,158.98,158.95,12.53722605]
[1729416852069,0.1,158.99,158.95,12.53722605]
[1729416852453,0.1,158.98,158.95,12.53722605]
[1729416852964,0.1,158.99,158.95,12.53722605]
[1729416854467,0.1,158.98,158.95,12.53722605]
[1729416855348,0.1,158.99,158.95,6.95627699]
[1729416855568,0.1,158.98,158.95,12.6226694]
[1729416857069,0.1,158.98,158.95,18.20361846]
[1729416857669,0.1,158.99,158.95,18.20361846]
[1729416859972,0.1,158.98,158.95,18.20361846]
[1729416861370,0.1,158.99,158.95,18.20361846]
[1729416863070,0.1,158.99,158.95,12.6226694]
[1729416866353,0.1,158.98,158.95,12.6226694]
[1729416867667,0.1,158.98,158.95,18.20361846]
[1729416869067,0.1,158.99,158.95,12.6226694]
[1729416869279,22.1098,159.01,158.96,23.776884]
[1729416869464,0.1,159.0,158.96,36.31411005]
[1729416871976,0.1,159.0,158.96,30.73316099]
[1729416872181,0.1,159.0,158.96,36.31411005]
[1729416874983,15.4929,159.01,158.96,30.73316099]
[1729416875189,0.1,159.0,158.96,36.31411005]
[1729416878079,0.1,159.0,158.96,30.73316099]
[1729416878265,0.1,159.0,158.96,36.31411005]
[1729416881081,0.1,159.0,158.96,30.73316099]
[1729416881285,0.1,159.0,158.96,36.31411005]
[1729416881692,0.1,158.98,158.96,5.58094906]
[1729416883993,0.1,158.98,158.95,6.5633084]
[1729416885485,0.1,158.97,158.95,6.5633084]
[1729416885864,21.8068,159.01,158.95,6.5633084]
[1729416885865,0.1,159.0,158.96,23.776884]
[1729416886064,0.1,159.0,158.96,30.73316099]
[1729416887577,0.1,159.0,158.96,36.31411005]
[1729416887773,0.1,158.99,158.96,36.31411005]
[1729416889388,0.1,159.0,158.96,36.31411005]
[1729416889902,21.9068,159.01,158.96,36.31411005]
[1729416890075,21.9068,159.01,158.96,30.73316099]
[1729416890394,21.9068,159.01,158.97,5.58094906]
[1729416890885,0.1,159.0,158.97,5.58094906]
[1729416895677,0.1,158.99,158.97,5.58094906]
[1729416896094,0.1,158.99,158.96,37.29665997]
[1729416899105,0.1,158.97,158.96,6.56349898]
[1729416900394,0.1,158.98,158.96,6.56349898]
[1729416901999,0.1,159.0,158.96,6.56349898]
[1729416902179,0.1,159.0,158.96,13.51977597]
[1729416905487,0.1,158.99,158.96,13.51977597]
[1729416906093,0.1,159.0,158.96,13.51977597]
[1729416909006,0.1,158.99,158.96,13.51977597]
[1729416909607,0.1,159.0,158.96,13.51977597]
[1729416910209,0.1,159.0,158.96,19.10072503]
[1729416910502,0.1,159.01,158.97,36.31411005]
[1729416910695,0.1,159.04,158.97,36.31411005]
[1729416911391,0.1,159.02,158.97,36.31411005]
[1729416915287,0.1,159.03,158.97,36.31411005]
[1729416916214,0.1,159.04,158.97,36.31411005]
[1729416917226,0.1,159.04,158.99,23.776884]
[1729416917511,0.1,159.03,158.99,23.776884]
[1729416919498,0.1,159.04,158.99,23.776884]
[1729416919698,0.1,159.04,158.99,5.58094906]
[1729416919903,0.1,159.04,159.0,23.776884]
[1729416921516,22.0523,159.05,159.0,23.776884]
[1729416923207,0.1,159.05,159.0,29.35783306]
[1729416923916,0.1,159.05,159.01,5.58094906]
[1729416924429,0.1,159.05,159.02,23.776884]
[1729416924719,0.1,159.05,159.02,5.58094906]
[1729416924920,0.1,159.05,159.03,23.776884]
[1729416927707,0.1,159.05,159.03,29.35783306]
[1729416928693,0.1,159.07,159.03,29.35783306]
[1729416928897,0.1,159.08,159.05,23.776884]
[1729416929099,0.1,159.08,159.03,30.73316099]
[1729416929307,0.1,159.08,159.05,23.776884]
[1729416929715,21.425,159.09,159.05,23.776884]
[1729416929923,21.425,159.09,159.05,5.58094906]
[1729416930214,0.1,159.07,159.05,5.58094906]
[1729416930603,21.425,159.09,159.05,5.58094906]
[1729416931301,0.1,159.08,159.05,5.58094906]
[1729416931712,21.425,159.09,159.05,5.58094906]
[1729416932429,0.1,159.08,159.05,5.58094906]
[1729416932723,0.1,159.09,159.06,23.776884]
[1729416933219,0.1,159.09,159.06,29.35783306]
[1729416934303,0.1,159.1,159.06,29.35783306]
[1729416934500,0.1,159.1,159.07,5.58094906]
[1729416938727,21.325,159.13,159.08,23.776884]
[1729416938728,0.1,159.11,159.08,23.776884]
[1729416939029,0.1,159.12,159.08,29.35783306]
[1729416939419,0.1,159.11,159.08,29.35783306]
[1729416940324,0.1,159.1,159.08,29.35783306]
[1729416947924,0.1,159.11,159.08,29.35783306]
[1729416948130,0.1,159.11,159.08,36.31411005]
[1729416949932,0.1,159.14,159.09,20.0]
[1729416950119,0.1,159.12,159.1,23.776884]
[1729416950320,0.1,159.11,159.09,12.53722605]
[1729416953038,0.1,159.1,159.06,23.776884]
[1729416954039,0.1,159.09,159.06,23.776884]
[1729416956343,0.1,159.09,159.06,30.73316099]
[1729416957741,0.1,159.08,159.06,30.73316099]
[1729416960837,0.1,159.09,159.06,30.73316099]
[1729416961022,0.1,159.1,159.06,30.73316099]
[1729416961229,0.1,159.11,159.06,30.73316099]
[1729416961428,0.1,159.1,159.06,30.73316099]
[1729416962352,0.1,159.11,159.06,30.73316099]
[1729416962525,0.1,159.1,159.06,30.73316099]
[1729416963038,0.1,159.11,159.06,30.73316099]
[1729416963443,0.1,159.1,159.06,30.73316099]
[1729416964142,0.1,159.09,159.06,30.73316099]
[1729416964349,0.1,159.12,159.07,20.0]
[1729416964553,0.1,159.13,159.08,23.776884]
[1729416964841,0.1,159.13,159.08,29.35783306]
[1729416965050,0.1,159.12,159.08,36.31411005]
[1729416965739,0.1,159.14,159.08,36.31411005]
[1729416965943,0.1,159.14,159.1,23.776884]
[1729416966131,0.1,159.13,159.1,29.35783306]
[1729416966859,0.1,159.15,159.11,5.58094906]
[1729416967523,0.1,159.15,159.12,23.776884]
[1729416968134,0.1,159.14,159.12,23.776884]
[1729416969653,0.1,159.15,159.12,23.776884]
[1729416973833,0.6099812,159.2,159.12,23.776884]
[1729416973834,0.1,159.18,159.12,23.776884]
[1729416974034,0.1,159.18,159.13,29.35783306]
[1729416974240,0.1,159.17,159.13,23.776884]
[1729416974441,0.1,159.17,159.13,29.35783306]
[1729416976244,0.1,159.18,159.13,29.35783306]
[1729416976552,0.1,159.18,159.13,30.73316099]
[1729416976756,0.1,159.18,159.15,23.776884]
[1729416977139,0.1,159.17,159.15,23.776884]
[1729416977657,0.6099812,159.2,159.14,12.53722605]
[1729416977658,0.1,159.16,159.14,12.53722605]
[1729416978245,0.1,159.17,159.14,12.53722605]
[1729416979662,0.1,159.18,159.14,12.53722605]
[1729416979964,0.1,159.17,159.14,12.53722605]
[1729416980657,0.1,159.16,159.14,12.53722605]
[1729416981043,0.1,159.17,159.14,12.53722605]
[1729416982659,0.1,159.16,159.14,12.53722605]
[1729416984349,0.1,159.17,159.14,12.53722605]
[1729416985461,0.1,159.16,159.14,12.53722605]
[1729416986844,0.1,159.17,159.14,12.53722605]
[1729416987050,0.1,159.17,159.15,23.776884]
[1729416987362,0.1,159.19,159.15,23.776884]
[1729416987763,0.1,159.17,159.15,23.776884]
[1729416989052,0.1,159.18,159.15,23.776884]
[1729416989463,0.1,159.19,159.15,23.776884]
[1729416989953,0.1,159.18,159.15,23.776884]
[1729416993842,0.1,159.17,159.15,23.776884]
[1729416996467,0.1,159.15,159.13,5.58094906]
[1729416997280,0.1,159.14,159.13,5.58094906]
[1729416999050,0.1,159.14,159.12,6.55579117]
[1729416999250,0.1,159.14,159.1,23.776884]
[1729416999472,0.1,159.14,159.11,6.55777414]
[1729416999772,0.1,159.13,159.11,6.55777414]
[1729417000355,0.1,159.14,159.11,6.55777414]
[1729417000652,0.1,159.13,159.11,6.55777414]
[1729417003171,0.1,159.12,159.11,6.55777414]
[1729417003370,0.1,159.12,159.1,23.776884]
[1729417005173,0.1,159.13,159.1,23.776884]
[1729417005568,0.1,159.12,159.1,23.776884]
[1729417005769,0.1,159.13,159.1,23.776884]
[1729417009171,0.1,159.12,159.1,23.776884]
[1729417009479,0.1,159.13,159.1,23.776884]
[1729417010476,0.1,159.13,159.1,36.31411005]
[1729417013079,0.1,159.15,159.11,6.95627699]
[1729417013372,0.1,159.15,159.12,23.776884]
[1729417013577,0.1,159.14,159.12,23.776884]
[1729417014474,0.1,159.15,159.12,23.776884]
[1729417014776,0.1,159.16,159.12,23.776884]
[1729417014979,6.6467,159.17,159.12,23.776884]
[1729417015178,6.6467,159.17,159.12,29.35783306]
[1729417015882,0.1,159.16,159.12,29.35783306]
[1729417017152,30.0,159.15,159.12,29.35783306]
[1729417017578,0.1,159.16,159.12,29.35783306]
[1729417019185,0.1,159.16,159.12,23.776884]
[1729417019477,0.1,159.16,159.12,29.35783306]
[1729417022261,0.1,159.16,159.12,23.776884]
[1729417023484,0.1,159.16,159.12,29.35783306]
[1729417027379,0.1,159.16,159.13,5.58094906]
[1729417027780,0.1,159.16,159.14,23.776884]
[1729417028302,0.1,159.16,159.12,23.776884]
[1729417029001,0.1,159.16,159.14,23.776884]
[1729417039889,0.1,159.15,159.13,5.58094906]
[1729417040190,0.1,159.14,159.12,6.55644049]
[1729417040394,0.1,159.13,159.12,6.55644049]
[1729417040585,0.1,159.16,159.12,6.55644049]
[1729417040780,0.1,159.15,159.12,6.55644049]
[1729417041395,0.1,159.15,159.13,23.776884]
[1729417041598,0.1,159.16,159.13,23.776884]
[1729417041792,0.1,159.15,159.13,23.776884]
[1729417041989,0.1,159.16,159.13,23.776884]
[1729417042509,0.1,159.15,159.13,23.776884]
[1729417043806,0.1,159.16,159.13,23.776884]
[1729417044297,0.1,159.15,159.13,23.776884]
[1729417044501,0.1,159.14,159.12,6.55644049]
[1729417044701,0.1,159.16,159.13,23.776884]
[1729417047330,6.6585,159.17,159.12,6.55644049]
[1729417047331,0.1,159.14,159.12,6.55644049]
[1729417047727,0.1,159.15,159.12,6.55644049]
[1729417047930,0.1,159.14,159.12,6.55644049]
[1729417049893,0.1,159.16,159.13,23.776884]
[1729417051510,16.4665812,159.2,159.13,23.776884]
[1729417051511,0.1,159.17,159.13,23.776884]
[1729417051722,0.1,159.16,159.13,23.776884]
[1729417052307,0.1,159.17,159.13,29.35783306]
[1729417052820,16.4665812,159.2,159.13,29.35783306]
[1729417052821,0.1,159.16,159.13,29.35783306]
[1729417055620,0.1,159.16,159.13,36.31411005]
[1729417055924,0.1,159.18,159.14,5.58094906]
[1729417056229,0.1,159.18,159.15,23.776884]
[1729417063600,0.1,159.19,159.15,23.776884]
[1729417065526,0.1,159.19,159.15,29.35783306]
[1729417077034,0.7099812,159.2,159.15,29.35783306]
[1729417077217,0.7099812,159.2,159.17,23.776884]
[1729417078229,0.6099812,159.2,159.17,23.776884]
[1729417080714,0.7099812,159.2,159.17,23.776884]
[1729417083336,0.7099812,159.2,159.17,29.35783306]
[1729417084243,0.6099812,159.2,159.17,29.35783306]
[1729417084822,0.6099812,159.2,159.18,5.58094906]
[1729417085337,0.6099812,159.2,159.19,23.776884]
[1729417088739,0.6099812,159.2,159.19,49.35783306]
[1729417088922,0.6099812,159.2,159.19,56.31411005]
[1729417091250,0.6099812,159.2,159.19,50.73316099]
[1729417092745,0.1,159.23,159.19,50.73316099]
[1729417093249,0.1,159.23,159.2,5.58094906]
[1729417094228,0.1,159.24,159.2,5.58094906]
[1729417094445,0.1,159.23,159.2,5.58094906]
[1729417094644,0.1,159.24,159.2,5.58094906]
[1729417094827,6.4935,159.25,159.21,23.776884]
[1729417095543,6.4935,159.25,159.22,23.776884]
[1729417097255,0.1,159.27,159.22,23.776884]
[1729417097625,0.1,159.27,159.22,29.35783306]
[1729417100062,0.1,159.25,159.22,29.35783306]
[1729417100436,0.1,159.24,159.22,5.58094906]
[1729417101031,0.1,159.25,159.22,5.58094906]
[1729417101957,0.1,159.24,159.22,5.58094906]
[1729417102161,0.1,159.25,159.22,5.58094906]
[1729417104033,0.1,159.26,159.22,5.58094906]
[1729417104456,0.1,159.26,159.23,23.776884]
[1729417107935,0.1,159.28,159.23,29.35783306]
[1729417108130,0.1,159.27,159.24,5.58094906]
[1729417109366,0.1,159.27,159.23,23.776884]
[1729417109535,0.1,159.27,159.24,5.58094906]
[1729417109736,0.1,159.28,159.24,5.58094906]
[1729417109936,0.1,159.27,159.24,5.58094906]
[1729417111873,0.1,159.28,159.24,5.58094906]
[1729417112240,0.1,159.27,159.24,5.58094906]
[1729417112735,0.1,159.28,159.24,5.58094906]
[1729417113349,0.1,159.28,159.25,23.776884]
[1729417114059,0.1,159.27,159.25,23.776884]
[1729417114760,0.1,159.27,159.25,29.35783306]
[1729417115340,0.1,159.29,159.27,23.776884]
[1729417116841,0.1,159.29,159.27,29.35783306]
[1729417117861,0.1,159.28,159.27,5.58094906]
[1729417126659,0.1,159.28,159.24,43.776884]
[1729417127655,0.1,159.27,159.24,43.776884]
[1729417128075,0.1,159.27,159.24,23.776884]
[1729417133156,0.1,159.26,159.24,23.776884]
[1729417135062,0.1,159.25,159.23,6.55114577]
[1729417135267,0.1,159.24,159.23,6.55114577]
[1729417151371,6.3836,159.24,159.23,6.55114577]
[1729417151568,21.62,159.24,159.23,6.55114577]
[1729417151778,21.62,159.24,159.18,6.91183565]
[1729417151992,21.62,159.24,159.2,6.55373866]
[1729417152384,0.1,159.21,159.2,6.55373866]
[1729417158573,0.1,159.21,159.15,5.58094906]
[1729417158779,0.1,159.16,159.15,5.58094906]
[1729417159088,0.1,159.14,159.13,5.42632431]
[1729417159416,0.1,159.13,159.1,8.09437106]
[1729417159594,0.1,159.13,159.12,6.55699848]
[1729417165489,0.1,159.14,159.12,6.55699848]
[1729417165685,0.1,159.14,159.12,12.13794754]
[1729417184308,0.1,159.14,159.12,6.55699848]
[1729417193288,0.1,159.13,159.12,6.55699848]
[1729417213734,0.1,159.13,159.1,5.45870971]
[1729417214042,0.1,159.13,159.1,23.776884]
[1729417216445,22.4082165,159.19,159.1,23.776884]
[1729417218425,22.4082165,159.19,159.09,11.17723251]
[1729417218426,22.6082165,159.19,159.09,11.17723251]
[1729417218639,15.7285,159.17,159.09,11.17723251]
[1729417219460,6.239,159.16,159.09,11.17723251]
[1729417220542,6.239,159.16,159.09,5.59628345]
[1729417220741,6.239,159.16,159.05,43.776884]
[1729417221340,6.239,159.16,159.07,23.776884]
[1729417221539,6.239,159.16,159.08,23.776884]
[1729417224648,6.239,159.16,159.08,29.35783306]
[1729417224950,6.239,159.16,159.1,23.776884]
[1729417225137,6.239,159.16,159.1,29.35783306]
[1729417229354,6.239,159.16,159.1,34.87339335]
[1729417235350,6.239,159.16,159.1,29.29244429]
[1729417238742,6.239,159.16,159.1,34.87339335]
[1729417243362,6.239,159.16,159.12,6.55702808]
[1729417245043,6.239,159.16,159.1,5.58094906]
[1729417248463,6.239,159.16,159.1,11.17328478]
[1729417254496,6.239,159.16,159.1,5.59233572]
[1729417254680,6.239,159.16,159.09,6.55764057]
[1729417258178,6.239,159.16,159.09,12.06632829]
[1729417269789,15.7285,159.17,159.1,20.0]
[1729417269977,15.7285,159.17,159.09,25.66700189]
[1729417270171,15.7285,159.17,159.09,19.10936132]
[1729417270172,15.8285,159.17,159.09,19.10936132]
[1729417270383,15.8285,159.17,159.09,25.66021084]
[1729417273194,15.8285,159.17,159.09,19.60837289]
[1729417274978,22.2812,159.17,159.09,19.60837289]
[1729417291312,0.1,159.16,159.09,19.60837289]
[1729417291611,0.1,159.16,159.09,12.05953724]
[1729417292814,22.2812,159.17,159.09,12.05953724]
[1729417296305,22.1812,159.17,159.09,12.05953724]
[1729417296486,22.1812,159.17,159.09,25.66021084]
[1729417297307,22.1812,159.17,159.1,6.05183795]
[1729417299811,22.1812,159.17,159.1,7.54883565]
[1729417300117,0.1,159.2,159.11,31.32571965]
[1729417301502,0.1,159.2,159.1,23.776884]
[1729417301704,0.1,159.2,159.11,6.05183795]
[1729417301903,0.1,159.2,159.11,13.6006736]
[1729417308913,0.1,159.19,159.11,13.6006736]
[1729417311412,0.1,159.2,159.11,13.6006736]
[1729417314208,0.1,159.19,159.11,13.6006736]
[1729417315415,0.1,159.19,159.11,7.54883565]
[1729417315913,0.1,159.2,159.11,7.54883565]
[1729417317329,0.1,159.2,159.11,13.6006736]
[1729417318703,0.1,159.19,159.11,13.6006736]
[1729417320311,0.1,159.2,159.11,13.6006736]
[1729417320614,0.1,159.19,159.11,13.6006736]
[1729417323820,0.1,159.2,159.11,13.6006736]
[1729417325825,22.7387,159.21,159.11,13.6006736]
[1729417326032,22.6387,159.21,159.12,13.6006736]
[1729417326827,0.1,159.2,159.12,13.6006736]
[1729417328725,0.1,159.2,159.12,7.54883565]
[1729417331609,0.1,159.2,159.12,13.6006736]
[1729417332536,22.6387,159.21,159.12,13.6006736]
[1729417333210,22.7387,159.21,159.12,13.6006736]
[1729417333410,0.1,159.2,159.12,13.6006736]
[1729417340516,0.1,159.2,159.12,7.54883565]
[1729417346852,0.1,159.2,159.11,12.5948286]
[1729417349227,0.1,159.2,159.11,6.05183795]
[1729417349427,0.1,159.2,159.11,12.59261113]
[1729417353649,0.1,159.2,159.11,6.54077318]
[1729417355655,0.1,159.2,159.11,12.59261113]
[1729417359441,0.1,159.2,159.11,6.05183795]
[1729417359758,0.1,159.2,159.11,12.59333721]
[1729417361751,22.7387,159.21,159.12,6.05183795]
[1729417363135,22.5387,159.21,159.12,6.05183795]
[1729417363447,22.6387,159.21,159.12,6.05183795]
[1729417367445,22.6387,159.21,159.12,23.776884]
[1729417367646,22.6387,159.21,159.12,29.82872195]
[1729417369273,22.5387,159.21,159.12,29.82872195]
[1729417375372,22.5387,159.21,159.13,6.05183795]
[1729417379690,22.5387,159.21,159.12,29.82872195]
[1729417380762,22.6387,159.21,159.12,29.82872195]
[1729417381079,0.1,159.18,159.09,5.50868772]
[1729417381268,0.1,159.18,159.08,16.3175]
[1729417381580,0.2,159.18,159.08,16.3175]
[1729417381755,0.2,159.18,159.08,21.94598312]
[1729417382272,0.2,159.18,159.09,23.776884]
[1729417383662,0.1,159.18,159.09,23.776884]
[1729417383857,0.2,159.18,159.09,23.776884]
[1729417385678,0.1,159.2,159.09,23.776884]
[1729417385882,22.6387,159.21,159.09,23.776884]
[1729417386261,0.1,159.2,159.09,23.776884]
[1729417386661,22.6387,159.21,159.09,23.776884]
[1729417387375,22.5387,159.21,159.09,23.776884]
[1729417394990,22.6387,159.21,159.09,23.776884]
[1729417395279,0.2,159.2,159.08,21.94598312]
[1729417396668,0.2,159.2,159.09,23.776884]
[1729417400587,0.1,159.2,159.09,23.776884]
[1729417400769,0.2,159.2,159.09,23.776884]
[1729417400971,0.1,159.2,159.09,23.776884]
[1729417401490,0.2,159.2,159.09,23.776884]
[1729417402388,0.1,159.2,159.09,23.776884]
[1729417402590,0.2,159.2,159.09,23.776884]
[1729417404788,0.2,159.2,159.1,6.53543724]
[1729417405991,0.1,159.2,159.1,6.53543724]
[1729417406483,0.2,159.2,159.1,6.53543724]
[1729417407003,0.1,159.2,159.1,6.53543724]
[1729417408998,22.7387,159.21,159.1,6.53543724]
[1729417409176,0.1,159.2,159.1,6.53543724]
[1729417410591,22.6387,159.21,159.11,23.776884]
[1729417410780,22.5387,159.21,159.11,23.776884]
[1729417411800,22.6387,159.21,159.11,23.776884]
[1729417413000,0.1,159.2,159.11,23.776884]
[1729417414802,22.5387,159.21,159.11,23.776884]
[1729417414973,22.6387,159.21,159.11,23.776884]
[1729417415294,22.5387,159.21,159.11,23.776884]
[1729417415502,22.5387,159.21,159.11,29.22421141]
[1729417416480,22.5387,159.21,159.13,23.776884]
[1729417420285,22.741,159.25,159.13,44.39011141]
[1729417421502,22.841,159.25,159.15,23.776884]
[1729417422385,22.741,159.25,159.15,23.776884]
[1729417422576,22.841,159.25,159.15,23.776884]
[1729417422899,22.741,159.25,159.15,23.776884]
[1729417423090,22.841,159.25,159.15,23.776884]
[1729417425303,22.741,159.25,159.15,23.776884]
[1729417425715,22.741,159.25,159.15,34.64976615]
[1729417441916,0.1,159.27,159.15,34.64976615]
[1729417442300,0.1,159.28,159.15,34.64976615]
[1729417442505,0.1,159.27,159.15,34.64976615]
[1729417443797,6.1052,159.26,159.15,34.64976615]
[1729417449216,6.1052,159.26,159.17,23.776884]
[1729417452625,6.1052,159.26,159.17,29.22421141]
[1729417452921,6.1052,159.26,159.19,23.776884]
[1729417454633,15.6882,159.29,159.19,29.22421141]
[1729417455427,15.6882,159.29,159.2,5.44732741]
[1729417455923,15.6882,159.29,159.21,23.776884]
[1729417480042,15.6882,159.29,159.21,23.776884]
[1729417482942,15.6882,159.29,159.2,10.88083942]